fUSD/lending_fUSD_20250512
["ID","MTS","AMOUNT","RATE_DAILY","PERIOD"]
[360827904,1747050640204,-400.0,0.00014243,2]
[360827905,1747050640214,-400.0,0.00014243,2]
[360827906,1747050640224,-400.0,0.00014243,2]
[360827907,1747050640233,-400.0,0.00014243,2]
[360827908,1747050640243,-400.0,0.00014243,2]
[360827909,1747050640253,-400.0,0.00014243,2]
[360827910,1747050640263,-400.0,0.00014243,2]
[360827911,1747050640272,-400.0,0.00014243,2]
[360827912,1747050640282,-413.69,0.00014243,2]
[360827913,1747050640291,-400.0,0.00014243,2]
[360827914,1747050640300,-400.0,0.00014243,2]
[360827915,1747050640310,-423.7119918,0.00014243,2]
[360827916,1747050640322,-4079.7780082,0.00014243,2]
[360827917,1747050640332,-1367.68472073,0.00014243,2]
[360827918,1747050640344,-59.12527927,0.00014243,2]
[360827919,1747050640353,-3706.20012853,0.00014243,2]
[360827920,1747050640366,-286.84987147,0.00014243,2]
[360827921,1747050640376,-2172.64,0.00014243,2]
[360827922,1747050640386,-523.14,0.00014243,2]
[360827923,1747050640396,-10256.81,0.00014243,2]
[360827924,1747050640406,-7980.11,0.00014243,2]
[360827925,1747050640415,-495.42,0.00014243,2]
[360827926,1747050640427,-4893.25,0.00014243,2]
[360827927,1747050640437,-1126.99,0.00014243,2]
[360827928,1747050640446,-2550.99,0.00014243,2]
[360827929,1747050640455,-400.0,0.00014243,2]
[360827930,1747050640465,-14330.66324359,0.00014243,2]
[360827931,1747050640816,-13.54062456,0.00013888,2]
[360827932,1747050640835,-136.45937544,0.00013888,2]
[360827933,1747050640845,-955.52730862,0.00014217,2]
[360827934,1747050640854,-293.49324726,0.00014243,2]
[360827947,1747050644352,-452.54,0.000134,2]
[360827948,1747050644362,-78.04202628,0.000135,4]
[360827949,1747050644421,700.0,0.000137,5]
[360827950,1747050644436,-121.95797372,0.000135,4]
[360827951,1747050644445,-500.0,0.000136,4]
[360827952,1747050644454,-982.04202628,0.00014243,2]
[360827953,1747050644566,-19857.25378666,0.00014243,2]
[360827954,1747050644618,-260.5179195,0.00014243,2]
[360827957,1747050645574,-245.5855271,0.00014197,2]
[360827958,1747050645584,-1428.52977671,0.00014243,2]
[360827959,1747050645595,-400.0,0.00014243,2]
[360827960,1747050645604,-404.28,0.00014243,2]
[360827961,1747050645613,-400.0,0.00014243,2]
[360827962,1747050645623,-1702.7,0.00014243,2]
[360827963,1747050645633,-400.0,0.00014243,2]
[360827964,1747050645642,-642.37,0.00014243,2]
[360827965,1747050645652,-801.35,0.00014243,2]
[360827966,1747050645663,-876.91,0.00014243,2]
[360827967,1747050645673,-400.0,0.00014243,2]
[360827968,1747050645684,-440.93,0.00014243,2]
[360827969,1747050645694,-400.0,0.00014244,2]
[360827970,1747050645704,-400.0,0.00014244,2]
[360827971,1747050645713,-400.0,0.00014244,2]
[360827972,1747050645723,-400.0,0.00014244,2]
[360827973,1747050645733,-400.0,0.00014244,2]
[360827974,1747050645747,-267.34469619,0.00014244,2]
[360827975,1747050645760,-132.65530381,0.00014244,2]
[360827976,1747050645770,-400.0,0.00014244,2]
[360827977,1747050645779,-364.93469617,0.00014244,2]
[360827978,1747050645802,-35.06530383,0.00014244,2]
[360827979,1747050645812,-407.37,0.00014244,2]
[360827980,1747050645822,-400.0,0.00014244,2]
[360827981,1747050645832,-400.0,0.00014244,2]
[360827982,1747050645842,-400.0,0.00014244,2]
[360827983,1747050645851,-350.90098331,0.00014244,2]
[360827984,1747050645861,-400.0,0.00014244,2]
[360827985,1747050645870,-400.0,0.00014244,2]
[360827986,1747050645879,-400.0,0.00014244,2]
[360827987,1747050645888,-405.88094658,0.00014244,2]
[360827988,1747050645898,-400.0,0.00014244,2]
[360827989,1747050645908,-402.71604765,0.00014244,2]
[360827990,1747050645918,-411.4852518,0.00014244,2]
[360827991,1747050645927,-395.58146683,0.00014244,2]
[360827992,1747050645948,-25.31620623,0.00014244,2]
[360827993,1747050645957,-419.33621591,0.00014244,2]
[360827994,1747050645967,-400.0,0.00014244,2]
[360827995,1747050645976,-400.0,0.00014244,2]
[360827996,1747050645985,-407.2816222,0.00014244,2]
[360827997,1747050645995,-81.32215823,0.00014244,2]
[360827998,1747050646014,-266.74379743,0.00014244,2]
[360827999,1747050646528,1000.0,0.000138,5]
[360828000,1747050648677,1200.0,0.000139,5]
[360828001,1747050650778,200.0,0.000144,5]
[360828002,1747050652896,200.0,0.000145,5]
[360828003,1747050655031,200.0,0.000146,5]
[360828004,1747050657133,200.0,0.000147,5]
[360828005,1747050659235,797.0,0.000148,5]
[360828006,1747050775628,-235.2426037,0.00012,2]
[360828007,1747050781654,972.2173963,0.00011,2]
[360828008,1747050911950,262.74,0.00028,120]
[360828009,1747051079105,41331.85721598,0.00015,5]
[360828010,1747051239060,-152.0,0.00020771,34]
[360828011,1747051262496,167.297124,0.00015,5]
[360828012,1747051285796,-152.0,0.00020079,31]
[360828013,1747051285833,-152.0,0.0002031,32]
[360828014,1747051285862,-152.0,0.00020541,33]
[360828015,1747051285891,-581.25,0.000213,30]
[360828016,1747051461966,249.38992425,0.00015,5]
[360828017,1747051473410,283.24618122,0.00028,120]
[360828018,1747051480699,864.68,0.00011166,2]
[360828019,1747051580873,940.0878377,0.00027,120]
[360828020,1747051611290,150.0,0.00013699,7]
[360828021,1747051616402,1098.77079792,0.000275,120]
[360828026,1747051816551,1333.0,0.00026137,120]
[360828034,1747051832116,-706.131431,0.00012739,2]
[360828035,1747051832128,-186.11,0.00012997,2]
[360828036,1747051832143,-173.51889727,0.00013069,2]
[360828037,1747051832156,-244.0,0.00013136,2]
[360828038,1747051832167,-367.80390541,0.00013169,2]
[360828039,1747051832181,-632.19609459,0.00013169,2]
[360828040,1747051832191,-165.75,0.00013196,2]
[360828041,1747051832202,-300.0,0.00013278,2]
[360828042,1747051832212,-1175.44594899,0.00013278,2]
[360828043,1747051832225,-24.55405101,0.00013278,2]
[360828044,1747051832236,-300.0,0.00013278,2]
[360828045,1747051832247,-255.35,0.00013279,2]
[360828046,1747051832257,-3740.8,0.00013279,2]
[360828047,1747051832268,-6819.45,0.000134,2]
[360828048,1747051832278,-439.64,0.00013419,2]
[360828049,1747051832290,-864.68,0.0001343,2]
[360828050,1747051832301,-500.0,0.00013534,2]
[360828051,1747051832312,-207.4,0.00013597,2]
[360828052,1747051832322,-5939.0,0.00013635,2]
[360828053,1747051832333,-1146.0,0.00013635,2]
[360828054,1747051832343,-539.58434899,0.00013635,2]
[360828055,1747051832517,-500.0,0.00012732,2]
[360828056,1747051832528,-375.11509533,0.00012732,2]
[360828057,1747051832539,-19.61265101,0.00013635,2]
[360828058,1747051832550,-260.255,0.00013635,2]
[360828059,1747051832562,-488.22,0.00013699,2]
[360828060,1747051832572,-200.0,0.00013699,2]
[360828061,1747051832583,-179.97867155,0.00013699,2]
[360828062,1747051832594,-151.0,0.0001388,2]
[360828063,1747051832605,-151.0,0.0001388,2]
[360828064,1747051832616,-150.0,0.00013887,2]
[360828065,1747051832627,-154.756,0.00013888,2]
[360828066,1747051832638,-150.0,0.00013888,2]
[360828067,1747051832649,-198.95,0.00013888,2]
[360828068,1747051832660,-150.0,0.00013888,2]
[360828069,1747051832670,-798.0,0.00013888,2]
[360828070,1747051832681,-1456.0,0.00013888,2]
[360828071,1747051832691,-158.636,0.00013888,2]
[360828072,1747051832702,-398.62,0.00013888,2]
[360828073,1747051832713,-179.72423537,0.000141,2]
[360828074,1747051832760,-1039.6,0.000141,2]
[360828111,1747051837656,-150.14,0.0001303,2]
[360828113,1747051837665,-891.90099751,0.00013635,2]
[360828118,1747051837710,-3137.09900249,0.00013635,2]
[360828120,1747051837720,-1465.34242463,0.000141,2]
[360828122,1747051837731,-587.55857288,0.00014131,2]
[360828127,1747051837765,-98359.90852712,0.00014131,2]
[360828129,1747051837774,-1001.82907235,0.00014131,2]
[360828131,1747051837784,-154.76694495,0.00014131,2]
[360828133,1747051837793,-386.63132001,0.00014131,2]
[360828135,1747051837803,-386.63131999,0.00014149,2]
[360828137,1747051837812,-1001.82907235,0.00014149,2]
[360828138,1747051837822,-250.0,0.00014158,2]
[360828141,1747051837832,-250.0,0.00014159,2]
[360828143,1747051837842,-2684.66667,0.0001416,2]
[360828144,1747051837851,-386.63131999,0.00014166,2]
[360828146,1747051837860,-1001.82907235,0.00014167,2]
[360828149,1747051837870,-386.63131999,0.00014184,2]
[360828150,1747051837879,-1001.82907235,0.00014185,2]
[360828153,1747051837889,-386.63131999,0.00014202,2]
[360828155,1747051837899,-1001.82907235,0.00014203,2]
[360828157,1747051837908,-386.63131999,0.00014219,2]
[360828159,1747051837917,-1001.82907235,0.0001422,2]
[360828160,1747051837927,-69878.28542088,0.00014223,2]
[360828162,1747051837936,-400.0,0.0001423,2]
[360828164,1747051837946,-254.39111517,0.0001423,2]
[360828166,1747051837957,-400.0,0.0001423,2]
[360828167,1747051837966,-400.0,0.0001423,2]
[360828168,1747051837975,-524.0,0.0001423,2]
[360828169,1747051837985,-400.0,0.0001423,2]
[360828170,1747051837994,-923.26,0.0001423,2]
[360828171,1747051838004,-400.0,0.0001423,2]
[360828172,1747051838014,-210.81893514,0.0001423,2]
[360828173,1747051838024,-400.0,0.0001423,2]
[360828175,1747051838033,-400.0,0.0001423,2]
[360828176,1747051838043,-433.163,0.00014231,2]
[360828178,1747051838052,-474.27165543,0.00014231,2]
[360828180,1747051838061,-400.0,0.00014231,2]
[360828182,1747051838071,-400.0,0.00014231,2]
[360828183,1747051838080,-400.0,0.00014231,2]
[360828184,1747051838089,-400.0,0.00014231,2]
[360828185,1747051838100,-400.0,0.00014231,2]
[360828186,1747051838110,-400.0,0.00014231,2]
[360828187,1747051838119,-400.0,0.00014231,2]
[360828188,1747051838129,-400.0,0.00014231,2]
[360828189,1747051838139,-400.0,0.00014231,2]
[360828190,1747051838150,-400.0,0.00014231,2]
[360828191,1747051838160,-400.0,0.00014231,2]
[360828192,1747051838170,-400.0,0.00014231,2]
[360828193,1747051838179,-400.0,0.00014231,2]
[360828194,1747051838189,-400.0,0.00014231,2]
[360828195,1747051838199,-400.0,0.00014231,2]
[360828196,1747051838208,-400.0,0.00014231,2]
[360828197,1747051838221,-225.55683945,0.00014231,2]
[360828198,1747051838230,-522.05,0.00014231,2]
[360828199,1747051838240,-400.0,0.00014231,2]
[360828200,1747051838249,-400.0,0.00014231,2]
[360828201,1747051838258,-493.27117187,0.00014231,2]
[360828202,1747051838268,-400.0,0.00014231,2]
[360828203,1747051838277,-400.0,0.00014231,2]
[360828204,1747051838287,-400.0,0.00014231,2]
[360828205,1747051838296,-400.0,0.00014231,2]
[360828206,1747051838305,-400.0,0.00014231,2]
[360828207,1747051838315,-451.30547546,0.00014231,2]
[360828208,1747051838324,-400.0,0.00014231,2]
[360828209,1747051838333,-400.0,0.00014231,2]
[360828210,1747051838343,-400.0,0.00014231,2]
[360828211,1747051838353,-400.0,0.00014231,2]
[360828212,1747051838363,-400.0,0.00014231,2]
[360828213,1747051838372,-400.0,0.00014231,2]
[360828214,1747051838381,-400.0,0.00014231,2]
[360828215,1747051838391,-400.0,0.00014231,2]
[360828216,1747051838401,-400.0,0.00014231,2]
[360828217,1747051838411,-400.0,0.00014231,2]
[360828218,1747051838421,-261.82404194,0.00014231,2]
[360828219,1747051838430,-400.0,0.00014231,2]
[360828220,1747051838439,-400.0,0.00014231,2]
[360828221,1747051838449,-400.0,0.00014231,2]
[360828222,1747051838458,-400.0,0.00014231,2]
[360828223,1747051838468,-400.0,0.00014231,2]
[360828224,1747051838478,-400.0,0.00014231,2]
[360828225,1747051838487,-400.0,0.00014231,2]
[360828226,1747051838497,-400.0,0.00014231,2]
[360828227,1747051838507,-435.17855083,0.00014231,2]
[360828228,1747051838516,-345.19965802,0.00014231,2]
[360828229,1747051838525,-400.0,0.00014231,2]
[360828230,1747051838535,-400.0,0.00014231,2]
[360828231,1747051838545,-327.22650022,0.00014231,2]
[360828232,1747051838554,-627.36041036,0.00014231,2]
[360828233,1747051838563,-400.0,0.00014231,2]
[360828234,1747051838574,-200.0,0.00014231,2]
[360828235,1747051838584,-78391.7660547,0.00014231,2]
[360828236,1747051838617,-10988.0939453,0.00014231,2]
[360828237,1747051838628,-466.41,0.00014231,2]
[360828238,1747051838638,-318.2806997,0.00014231,2]
[360828239,1747051838647,-400.0,0.00014231,2]
[360828240,1747051838657,-4315.85,0.00014231,2]
[360828241,1747051838666,-190.90577018,0.00014231,2]
[360828242,1747051838675,-1367.36,0.00014231,2]
[360828243,1747051838685,-226.09851481,0.00014231,2]
[360828244,1747051838694,-400.0,0.00014231,2]
[360828245,1747051838704,-400.0,0.00014231,2]
[360828246,1747051838713,-3826.67,0.00014231,2]
[360828247,1747051838723,-400.0,0.00014231,2]
[360828248,1747051838732,-400.0,0.00014231,2]
[360828249,1747051838742,-501.34,0.00014231,2]
[360828250,1747051838751,-400.0,0.00014231,2]
[360828251,1747051838760,-491.62,0.00014231,2]
[360828252,1747051838769,-7647.61,0.00014231,2]
[360828253,1747051838778,-18508.29,0.00014231,2]
[360828254,1747051838787,-356.95829205,0.00014231,2]
[360828255,1747051838800,-1725.16170795,0.00014231,2]
[360828256,1747051838810,-400.0,0.00014231,2]
[360828257,1747051838819,-474.77,0.00014231,2]
[360828258,1747051838829,-400.0,0.00014231,2]
[360828259,1747051838839,-400.0,0.00014231,2]
[360828260,1747051838850,-438.84,0.00014231,2]
[360828261,1747051838859,-418.56,0.00014231,2]
[360828262,1747051838868,-4689.37,0.00014231,2]
[360828263,1747051838878,-508.03749577,0.00014231,2]
[360828264,1747051838887,-400.0,0.00014231,2]
[360828265,1747051838896,-400.0,0.00014231,2]
[360828266,1747051838906,-400.0,0.00014231,2]
[360828267,1747051838916,-1080.03,0.00014231,2]
[360828268,1747051838925,-400.0,0.00014231,2]
[360828269,1747051838934,-400.0,0.00014231,2]
[360828270,1747051838944,-436.15,0.00014231,2]
[360828271,1747051838953,-17882.2198704,0.00014231,2]
[360828276,1747051839763,-400.0,0.0001423,2]
[360828277,1747051839772,-9451.16035848,0.00014231,2]
[360828278,1747051839870,-552.6,0.00014231,2]
[360828280,1747051840239,-70202.25977112,0.00014231,2]
[360828282,1747051840249,-400.0,0.00014231,2]
[360828283,1747051840259,-400.0,0.00014231,2]
[360828284,1747051840268,-400.0,0.00014231,2]
[360828285,1747051840278,-400.0,0.00014231,2]
[360828286,1747051840288,-2444.7,0.00014231,2]
[360828287,1747051840298,-400.0,0.00014231,2]
[360828288,1747051840308,-400.0,0.00014231,2]
[360828289,1747051840317,-400.0,0.00014231,2]
[360828290,1747051840327,-400.0,0.00014231,2]
[360828291,1747051840337,-400.0,0.00014231,2]
[360828292,1747051840347,-35604.48,0.00014231,2]
[360828293,1747051840356,-400.0,0.00014231,2]
[360828294,1747051840366,-400.0,0.00014231,2]
[360828295,1747051840376,-400.0,0.00014231,2]
[360828296,1747051840385,-400.0,0.00014231,2]
[360828297,1747051840395,-400.0,0.00014231,2]
[360828298,1747051840404,-400.0,0.00014231,2]
[360828299,1747051840414,-400.0,0.00014231,2]
[360828300,1747051840423,-281.94,0.00014231,2]
[360828301,1747051840432,-400.0,0.00014231,2]
[360828302,1747051840441,-2637.46,0.00014231,2]
[360828303,1747051840451,-400.0,0.00014231,2]
[360828304,1747051840461,-400.0,0.00014231,2]
[360828305,1747051840471,-400.0,0.00014231,2]
[360828306,1747051840480,-400.0,0.00014231,2]
[360828307,1747051840490,-2559.16,0.00014231,2]
[360828308,1747051840499,-400.0,0.00014231,2]
[360828309,1747051840508,-400.0,0.00014231,2]
[360828310,1747051840517,-400.0,0.00014231,2]
[360828311,1747051840527,-1631.76,0.00014231,2]
[360828312,1747051840536,-615.61,0.00014231,2]
[360828313,1747051840546,-400.0,0.00014231,2]
[360828314,1747051840555,-400.0,0.00014231,2]
[360828315,1747051840565,-767.96,0.00014231,2]
[360828316,1747051840574,-840.38,0.00014231,2]
[360828317,1747051840584,-400.0,0.00014231,2]
[360828318,1747051840595,-422.56,0.00014231,2]
[360828319,1747051840604,-400.0,0.00014231,2]
[360828320,1747051840614,-400.0,0.00014231,2]
[360828321,1747051840623,-3828.08756882,0.00014231,2]
[360828339,1747051842964,-779.736114,0.00013635,2]
[360828340,1747051842976,-99.263886,0.00013635,2]
[360828341,1747051842986,-317.5069,0.00014123,2]
[360828342,1747051842995,-75.08286152,0.0001423,2]
[360828343,1747051843007,-324.91713848,0.0001423,2]
[360828344,1747051843018,-400.0,0.0001423,2]
[360828345,1747051843028,-400.0,0.0001423,2]
[360828346,1747051843037,-51821.14346276,0.00014231,2]
[360828347,1747051843048,-5010.9,0.00014231,2]
[360828348,1747051843060,-5546.50896842,0.00014231,2]
[360828349,1747051843070,-400.0,0.00014231,2]
[360828350,1747051843079,-400.0,0.00014232,2]
[360828351,1747051843088,-400.0,0.00014232,2]
[360828352,1747051843098,-512.23448423,0.00014232,2]
[360828353,1747051843107,-400.0,0.00014232,2]
[360828354,1747051843116,-400.0,0.00014232,2]
[360828355,1747051843125,-314.51832552,0.00014232,2]
[360828356,1747051843134,-400.0,0.00014232,2]
[360828357,1747051843146,-400.0,0.00014232,2]
[360828358,1747051843154,-400.0,0.00014232,2]
[360828359,1747051843163,-528.04,0.00014232,2]
[360828360,1747051843172,-400.0,0.00014232,2]
[360828361,1747051843182,-436.60144212,0.00014232,2]
[360828362,1747051843191,-450.0,0.00014232,2]
[360828364,1747051843201,-400.0,0.00014232,2]
[360828366,1747051843210,-2328.6,0.00014232,2]
[360828368,1747051843221,-316.2885326,0.00014232,2]
[360828370,1747051843230,-400.0,0.00014232,2]
[360828372,1747051843239,-400.0,0.00014232,2]
[360828379,1747051843421,-450.0,0.00014232,2]
[360828380,1747051843431,-4247.08,0.00014232,2]
[360828381,1747051843441,-400.0,0.00014232,2]
[360828382,1747051843450,-400.0,0.00014232,2]
[360828383,1747051843460,-615.39,0.00014232,2]
[360828384,1747051843470,-400.0,0.00014232,2]
[360828385,1747051843480,-400.0,0.00014232,2]
[360828386,1747051843489,-386.63131999,0.00014237,2]
[360828387,1747051843500,-1001.82907235,0.00014238,2]
[360828388,1747051843510,-400.0,0.0001424,2]
[360828389,1747051843520,-400.0,0.0001424,2]
[360828390,1747051843529,-400.0,0.0001424,2]
[360828391,1747051843539,-400.0,0.0001424,2]
[360828392,1747051843548,-524.0,0.0001424,2]
[360828393,1747051843558,-524.0,0.0001424,2]
[360828394,1747051843567,-400.0,0.0001424,2]
[360828395,1747051843576,-923.26,0.0001424,2]
[360828396,1747051843586,-923.26,0.0001424,2]
[360828397,1747051843595,-400.0,0.0001424,2]
[360828398,1747051843605,-400.0,0.0001424,2]
[360828399,1747051843614,-400.0,0.0001424,2]
[360828400,1747051843624,-400.0,0.0001424,2]
[360828401,1747051843633,-400.0,0.0001424,2]
[360828402,1747051843642,-400.0,0.0001424,2]
[360828403,1747051843652,-400.0,0.0001424,2]
[360828404,1747051843661,-400.0,0.0001424,2]
[360828405,1747051843672,-400.0,0.0001424,2]
[360828406,1747051843681,-400.02164515,0.0001424,2]
[360828407,1747051843692,-401.1745333,0.0001424,2]
[360828408,1747051843702,-300.0,0.0001424,2]
[360828409,1747051843711,-388.59118711,0.00014241,2]
[360828410,1747051843720,-13523.34521184,0.00014241,2]
[360828411,1747051843746,-52040.82626044,0.00014241,2]
[360828419,1747051845854,-172.87,0.00013699,2]
[360828420,1747051845864,-357.20191685,0.00014231,2]
[360828421,1747051845876,-42.79808315,0.00014231,2]
[360828422,1747051845885,-400.0,0.0001424,2]
[360828423,1747051845895,-4747.20191685,0.00014241,2]
[360828424,1747051846016,-2044.0,0.00014241,2]
[360828425,1747051846028,-50753.63372912,0.00014241,2]
[360828426,1747051846039,-12308.5,0.00014241,2]
[360828427,1747051846067,-911.00001,0.00014241,2]
[360828428,1747051846124,-95063.88850861,0.00014241,2]
[360828429,1747051846135,-8798.36379743,0.00014241,2]
[360828437,1747052524027,3207.18274128,0.0002799,120]
[360828438,1747052600545,1333.0,0.00026137,120]
[360828440,1747052678763,722.65340044,0.00010599,2]
[360828441,1747052678787,152.59659956,0.00010599,2]
[360828442,1747052749421,150.0,0.00013699,7]
[360828485,1747053032179,-164.42150949,0.00012364,2]
[360828538,1747053032693,-300.0,0.00012463,2]
[360828539,1747053032702,-1200.0,0.00012463,2]
[360828540,1747053032711,-150.0,0.00012463,2]
[360828541,1747053032720,-300.0,0.00012463,2]
[360828542,1747053032729,-477.5796118,0.00012464,2]
[360828543,1747053032959,-107.56779172,0.00012464,2]
[360828544,1747053032971,-392.43220828,0.00012464,2]
[360828545,1747053032981,-292.83557959,0.00012464,2]
[360828546,1747053033182,-207.16442041,0.00012464,2]
[360828547,1747053033192,-190.11442515,0.00012464,2]
[360828548,1747053033218,-309.88557485,0.00012464,2]
[360828549,1747053033228,-500.0,0.00012464,2]
[360828550,1747053033237,-185.25862623,0.00012464,2]
[360828551,1747053033248,-314.74137377,0.00012464,2]
[360828552,1747053033257,-500.0,0.00012464,2]
[360828553,1747053033266,-500.0,0.00012464,2]
[360828554,1747053033275,-500.0,0.00012464,2]
[360828555,1747053033283,-500.0,0.00012464,2]
[360828556,1747053033292,-87.19817377,0.00012464,2]
[360828557,1747053033303,-412.80182623,0.00012464,2]
[360828558,1747053033312,-172.50215606,0.00012464,2]
[360828559,1747053033324,-327.49784394,0.00012464,2]
[360828560,1747053033333,-131.56424367,0.00012464,2]
[360828561,1747053033344,-368.43575633,0.00012464,2]
[360828562,1747053033353,-472.30424369,0.00012464,2]
[360828563,1747053033371,-27.69575631,0.00012464,2]
[360828564,1747053033380,-491.37935857,0.00012464,2]
[360828565,1747053033389,-500.0,0.00012464,2]
[360828566,1747053033401,-105.42344358,0.00012464,2]
[360828570,1747053037846,-394.57655642,0.00012464,2]
[360828571,1747053037856,-500.0,0.00012464,2]
[360828572,1747053037866,-500.0,0.00012464,2]
[360828573,1747053037875,-500.0,0.00012464,2]
[360828574,1747053037885,-500.0,0.00012464,2]
[360828575,1747053037894,-500.0,0.00012464,2]
[360828576,1747053037906,-500.0,0.00012464,2]
[360828577,1747053037915,-500.0,0.00012464,2]
[360828578,1747053037925,-500.0,0.00012464,2]
[360828579,1747053037935,-500.0,0.00012464,2]
[360828580,1747053037944,-500.0,0.00012464,2]
[360828581,1747053037953,-500.0,0.00012464,2]
[360828582,1747053037964,-500.0,0.00012464,2]
[360828583,1747053037973,-500.0,0.00012464,2]
[360828584,1747053037982,-500.0,0.00012464,2]
[360828585,1747053037991,-500.0,0.00012464,2]
[360828586,1747053038000,-500.0,0.00012464,2]
[360828587,1747053038010,-500.0,0.00012464,2]
[360828588,1747053038020,-500.0,0.00012464,2]
[360828589,1747053038029,-500.0,0.00012464,2]
[360828590,1747053038038,-500.0,0.00012464,2]
[360828591,1747053038047,-500.0,0.00012464,2]
[360828592,1747053038057,-500.0,0.00012464,2]
[360828593,1747053038067,-500.0,0.00012464,2]
[360828594,1747053038075,-500.0,0.00012464,2]
[360828595,1747053038084,-500.0,0.00012464,2]
[360828596,1747053038093,-500.0,0.00012464,2]
[360828597,1747053038103,-500.0,0.00012464,2]
[360828598,1747053038112,-500.0,0.00012464,2]
[360828599,1747053038121,-500.0,0.00012464,2]
[360828600,1747053038131,-273.77516023,0.00012464,2]
[360828601,1747053038140,-500.0,0.00012464,2]
[360828602,1747053038151,-500.0,0.00012464,2]
[360828603,1747053038161,-500.0,0.00012464,2]
[360828604,1747053038171,-500.0,0.00012464,2]
[360828605,1747053038181,-500.0,0.00012464,2]
[360828607,1747053038190,-500.0,0.00012464,2]
[360828609,1747053038200,-500.0,0.00012464,2]
[360828611,1747053038209,-500.0,0.00012464,2]
[360828613,1747053038218,-500.0,0.00012464,2]
[360828614,1747053038227,-500.0,0.00012464,2]
[360828616,1747053038236,-500.0,0.00012464,2]
[360828618,1747053038246,-500.0,0.00012464,2]
[360828620,1747053038254,-500.0,0.00012464,2]
[360828622,1747053038263,-500.0,0.00012464,2]
[360828624,1747053038273,-500.0,0.00012464,2]
[360828626,1747053038282,-500.0,0.00012464,2]
[360828628,1747053038291,-500.0,0.00012464,2]
[360828630,1747053038300,-500.0,0.00012464,2]
[360828632,1747053038309,-500.0,0.00012464,2]
[360828634,1747053038319,-455.4756435,0.00012464,2]
[360828638,1747053038331,-44.5243565,0.00012464,2]
[360828640,1747053038340,-500.0,0.00012464,2]
[360828642,1747053038349,-500.0,0.00012464,2]
[360828644,1747053038359,-500.0,0.00012464,2]
[360828646,1747053038368,-500.0,0.00012464,2]
[360828648,1747053038377,-500.0,0.00012464,2]
[360828649,1747053038386,-6.7370335,0.00012464,2]
[360828650,1747053038399,-443.2629665,0.00012464,2]
[360828652,1747053038409,-500.0,0.00012464,2]
[360828654,1747053038418,-500.0,0.00012464,2]
[360828656,1747053038428,-500.0,0.00012464,2]
[360828658,1747053038437,-500.0,0.00012464,2]
[360828660,1747053038446,-500.0,0.00012464,2]
[360828661,1747053038455,-500.0,0.00012464,2]
[360828662,1747053038464,-500.0,0.00012464,2]
[360828663,1747053038473,-500.0,0.00012464,2]
[360828664,1747053038482,-264.06157427,0.00012464,2]
[360828665,1747053038491,-500.0,0.00012464,2]
[360828666,1747053038501,-500.0,0.00012464,2]
[360828667,1747053038511,-500.0,0.00012464,2]
[360828668,1747053038520,-500.0,0.00012464,2]
[360828669,1747053038530,-500.0,0.00012464,2]
[360828670,1747053038540,-500.0,0.00012464,2]
[360828671,1747053038549,-500.0,0.00012464,2]